Cogmind - Beta 10 @@@ ROGUE MODE // 2020.09.15 @ 19:14:50 Player: Ketemphor Result: Destroyed by G-34 Mercenary with Small Laser Performance ------------- Evolutions (1) 500 Regions Visited (3) 600 Robots Destroyed (47) 235 Value Destroyed (1048) 1048 Prototype IDs (1) 20 Alien Tech Used (0) 0 Bonus (14) 14 TOTAL SCORE: 2417 Bonus ------- Follower Combat Kills 14 Cogmind --------- Core Integrity 0/400 Matter 300/300 Energy 160/160 System Corruption 0% Temperature Cool (216) Movement Treading (200) Ox2 Location -9/Materials Parts ------- > --- POWER (1) -------- Light Nuclear Core > --- PROPULSION (2) --- Light Treads Light Treads > --- UTILITY (4) ------ Improved Heat Sink Large Storage Unit High-capacity Storage Unit High-capacity Storage Unit > --- WEAPON (2) ------- Advanced Beam Cannon Advanced Beam Cannon > --- INVENTORY (26) --- Ion Engine Improved Ion Engine Light Treads Aluminum Leg Medium Matter Pod (100) Sensor Array Signal Interpreter Terrain Scanner Terrain Scan Processor Weapon Shielding Hacking Suite Hacking Suite Hacking Suite Advanced Beam Cannon Grenade Launcher Rocket Launcher Datajack Maul Peak State ------------ > --- POWER ------------ Light Nuclear Core > --- PROPULSION ------- Light Treads Light Treads > --- UTILITY ---------- Large Storage Unit High-capacity Storage Unit High-capacity Storage Unit Terrain Scanner > --- WEAPON ----------- Beamcaster Advanced Beam Cannon > --- INVENTORY -------- Ion Engine Improved Ion Engine Light Nuclear Core Light Treads Aluminum Leg Aluminum Leg Aluminum Leg Improved Heat Sink Large Storage Unit Medium Matter Pod Signal Interpreter Terrain Scan Processor Weapon Shielding Light Armor Plating Hacking Suite Hacking Suite Hacking Suite Particle Gun Grenade Launcher Rocket Launcher Datajack [Rating: 20] Favorites ----------- Power Ion Engine Engine Ion Engine Power Core Light Nuclear Core Propulsion Light Treads Treads Light Treads Leg Aluminum Leg Wheel Wheel Utility High-capacity Storage Unit Device Terrain Scanner Storage High-capacity Storage Unit Protection Light Armor Plating Weapon Assault Rifle Energy Gun Particle Gun Energy Cannon Advanced Beam Cannon Ballistic Gun Assault Rifle Launcher Grenade Launcher Impact Weapon Maul Build | -11 -10 -10 -9 ------- Run | Scr Mat Min Mat Slots Evolved 2 | . . . 2 Power . | . . . . Propulsion . | . . . . Utility 2 | . . . 2 Weapon . | . . . . Parts Attached 46 | 3 10 9 24 Power 4 | . 1 1 2 Engine 2 | . 1 . 1 Core 2 | . . 1 1 Reactor . | . . . . Propulsion 13 | 2 2 1 8 Treads 9 | . 2 1 6 Leg 2 | . . . 2 Wheel 2 | 2 . . . Hover . | . . . . Flight . | . . . . Utility 7 | . 2 . 5 Device 2 | . . . 2 Storage 4 | . 2 . 2 Processor . | . . . . Hackware . | . . . . Protection 1 | . . . 1 Artifact . | . . . . Weapon 22 | 1 5 7 9 Energy Gun 5 | . . 1 4 Energy Cannon 3 | . . . 3 Ballistic Gun 6 | 1 3 2 . Ballistic Cannon . | . . . . Launcher 6 | . 2 4 . Special Weapon . | . . . . Impact Weapon 2 | . . . 2 Slashing Weapon . | . . . . Piercing Weapon . | . . . . Special Melee Weapon . | . . . . Unidentified Prototypes 1 | . . . 1 Parts Lost 17 | . 4 1 12 Power 3 | . 1 . 2 Propulsion 8 | . 2 . 6 Utility 1 | . . . 1 Weapon 5 | . 1 1 3 Highest Loss Streak 4 | . 2 1 4 Average Slot Usage (%) 94 | . 96 99 89 Engine 8 | . 13 13 . Core 4 | . . . 9 Treads 20 | . 16 28 18 Wheel 3 | . 11 . . Device 2 | . . . 6 Storage 29 | . 27 28 32 Energy Gun 5 | . 2 1 10 Energy Cannon 1 | . . . 4 Ballistic Gun 10 | . 18 16 . Launcher 4 | . 5 9 1 Naked Turns . | . . . . Heaviest Build 94 | 11 73 75 94 Greatest Support 40 | 26 40 40 40 Greatest Overweight (x) 8 | . 7 1 8 Average Overweight (x) 1 | . 1 1 2 Largest Inventory Capacity 26 | 6 20 20 26 Average Capacity 22 | 6 19 20 25 Most Carried 24 | 6 20 20 24 Average Carried 17 | 6 14 19 19 Final Capacity 26 | 6 20 20 26 Final Carried 20 | 6 20 20 18 Class Distribution -------------------- 100% | Hauler-Mutant Dominant Class ---------------- Hauler-Mutant | -10/Materials Hauler-Mutant | -10/Mines Hauler-Mutant | -9/Materials Resources | -11 -10 -10 -9 ----------- Run | Scr Mat Min Mat Matter Collected 1055 | 230 359 250 216 Remotely . | . . . . Salvage Created 1242 | . 523 317 402 Parts 101 | . 48 27 26 Haulers Intercepted . | . . . . Recyclers Shooed 2 | . 1 . 1 Parts Field Recycled . | . . . . Retrieved Matter . | . . . . Parts Self-Destructed . | . . . . Prevented . | . . . . Kills | -11 -10 -10 -9 ------- Run | Scr Mat Min Mat Combat Hostiles Destroyed 34 | . 15 12 7 Guns 11 | . 6 3 2 Cannons 5 | . . . 5 AOE 18 | . 9 9 . Classes Destroyed 10 | . 6 1 3 Worker 1 | . 1 . . Builder 3 | . . 2 1 Tunneler 2 | . 2 . . Recycler 3 | . 2 1 . Operator 3 | . 3 . . Watcher 1 | . . . 1 Swarmer 14 | . 6 8 . Grunt 15 | . 9 4 2 Duelist 1 | . . . 1 Sentry 4 | . . . 4 Best Kill Streak 8 | . 8 6 5 Combat Bots Only 5 | . 3 5 4 Max Kills in Single Turn 2 | . 2 2 1 Gunslinging . | . . . . Exploded 2 | . 2 2 . Melee . | . . . . Uniques/NPCs Destroyed . | . . . . Combat | -11 -10 -10 -9 -------- Run | Scr Mat Min Mat Damage Taken 2717 | . 554 452 1711 Core 585 | . 84 95 406 Absorbed by Shields . | . . . . Core Remaining (%) 64 | 100 . 28 . Volleys Fired 92 | . 45 20 27 Largest 2 | . 2 2 2 Hottest 140 | . 40 85 140 Shots Fired 132 | . 64 26 42 Gun 76 | . 52 14 10 Cannon 32 | . . . 32 Launcher 24 | . 12 12 . Special . | . . . . Kinetic 54 | . 44 10 . Thermal 46 | . . 4 42 Explosive 24 | . 12 12 . Electromagnetic 8 | . 8 . . Robot Hit Streak 11 | . 11 5 7 Robot Miss Streak 4 | . 4 3 3 Penetration Max . | . . . . Secondary Targets 1 | . . 1 . Max Gunslinging Chain 1 | . . 1 . Shots Hit Robots 98 | . 47 12 39 Core Hits 71 | . 37 23 11 Critical Hits 6 | . 1 . 5 Critical Kills 1 | . . . 1 Critical Parts Destroyed 4 | . 1 . 3 Melee Attacks 14 | . . . 14 Impact 14 | . . . 14 Slashing . | . . . . Piercing . | . . . . Sneak Attacks 1 | . . . 1 Combat Hostiles . | . . . . Follow-up Attacks . | . . . . Damage Inflicted 3092 | . 1244 880 968 Guns 783 | . 505 113 165 Cannons 516 | . . . 516 Explosions 1506 | . 739 767 . Melee 240 | . . . 240 Ramming 47 | . . . 47 Kinetic 501 | . 438 63 . Thermal 786 | . 55 50 681 Explosive 1451 | . 684 767 . Electromagnetic 67 | . 67 . . Impact 240 | . . . 240 Slashing . | . . . . Piercing . | . . . . Highest Corruption 2 | . 2 2 . Average Corruption 2 | . 2 2 . Corruption Purged . | . . . . Effects 6 | . 1 5 . Message Errors 4 | . . 4 . Energy Discharges 2 | . 1 1 . Overload Shots . | . . . . Overflow Damage 85 | . 29 40 16 Projectiles 16 | . . . 16 Explosions 69 | . 29 40 . Melee . | . . . . Knockbacks 4 | . . . 4 Impact 4 | . . . 4 Kinetic . | . . . . Secondary . | . . . . Self-Inflicted Damage 175 | . 80 95 . Shots 9 | . 4 5 . Rammed 5 | . . . 5 Targets Rammed 5 | . . . 5 Kicked . | . . . . Crushed . | . . . . Highest Temperature 235 | . 30 120 235 Average Temperature 81 | . 7 54 99 Received Heat Transfer 765 | . 195 90 480 Effects 1 | . . . 1 Interference 1 | . . . 1 Siege Activations . | . . . . Robots Corrupted . | . . . . Combat Hostiles . | . . . . Parts Fried . | . . . . Impact Corruptions . | . . . . Robots Melted . | . . . . Combat Hostiles . | . . . . Parts Melted 4 | . . . 4 Heat Transferred 1419 | . 50 111 1258 Parts Sabotaged . | . . . . Parts Stolen . | . . . . Parts Stripped . | . . . . Power Chain Reactions 1 | . 1 . . Missiles Intercepted . | . . . . Alert | -11 -10 -10 -9 ------- Run | Scr Mat Min Mat Peak Influence 272 | . 250 272 167 Initial 105 | . . 60 105 Average 87 | . 114 68 74 Maximum Alert Level 1 | . 1 1 . Low Security (%) 94 | 100 89 92 100 Level 1 5 | . 10 7 . Level 2 . | . . . . Level 3 . | . . . . Level 4 . | . . . . Level 5 . | . . . . High Security . | . . . . Max Security . | . . . . Squads Dispatched 5 | . 5 . . Investigation 1 | . 1 . . Extermination . | . . . . Reinforcement 4 | . 4 . . Assault . | . . . . Garrison . | . . . . Intercept . | . . . . Construction Impeded . | . . . . Haulers Reinforced . | . . . . Stealth | -11 -10 -10 -9 --------- Run | Scr Mat Min Mat Distress Signals 1 | . 1 . . Communications Jammed . | . . . . Distress Signals . | . . . . Times Spotted 71 | . 36 16 19 Peak Tracking Total 8 | . 6 8 6 Tactical Retreats 9 | . 5 . 4 Traps | -11 -10 -10 -9 ------- Run | Scr Mat Min Mat Traps Triggered 5 | . 3 . 2 Indirectly . | . . . . Trap Hack Attempts . | . . . . Triggered . | . . . . Disarmed . | . . . . Reprogrammed . | . . . . Reused . | . . . . Traps Extracted . | . . . . Installed . | . . . . Triggered . | . . . . Machines | -11 -10 -10 -9 ---------- Run | Scr Mat Min Mat Machines Disabled 2 | . 2 . . Max in Single Turn 2 | . 2 . . Machines Sabotaged . | . . . . Garrisons Compromised . | . . . . Overloaded Fab Kills . | . . . . Fab Network Shutdowns . | . . . . Hacking | -11 -10 -10 -9 --------- Run | Scr Mat Min Mat Machines Accessed 6 | . 4 . 2 Terminals 6 | . 4 . 2 Fabricators . | . . . . Repair Stations . | . . . . Recycling Units . | . . . . Scanalyzers . | . . . . Garrison Access . | . . . . Total Hacks 20 | . 16 . 4 Successful 9 | . 7 . 2 Failed 11 | . 9 . 2 Catastrophic . | . . . . Database Lockouts . | . . . . Manual 8 | . 7 . 1 Terminals 20 | . 16 . 4 Fabricators . | . . . . Repair Stations . | . . . . Recycling Units . | . . . . Scanalyzers . | . . . . Garrison Access . | . . . . Terminal Hacks 5 | . 4 . 1 Emergency Access Points 1 | . 1 . . Alert Level 2 | . 2 . . Unreport Threat 1 | . 1 . . Locate Traps 1 | . . . 1 Fabricator Hacks . | . . . . Repair Station Hacks . | . . . . Recycling Unit Hacks . | . . . . Scanalyzer . | . . . . Garrison Access Hacks . | . . . . Unauthorized Hacks 4 | . 3 . 1 Terminals 4 | . 3 . 1 Botnet 4 | . 3 . 1 Fabricators . | . . . . Repair Stations . | . . . . Recycling Units . | . . . . Scanalyzers . | . . . . Garrison Access . | . . . . Data Cores Recovered . | . . . . Used . | . . . . Hacking Detections 6 | . 4 . 2 Full Trace Events 1 | . 1 . . Feedback Events . | . . . . Feedback Blocked . | . . . . Robot Schematics Acquired . | . . . . Robots Built . | . . . . Matter . | . . . . Time . | . . . . Total Robot Build Rating . | . . . . Part Schematics Acquired . | . . . . Parts Built . | . . . . Matter . | . . . . Time . | . . . . Total Part Build Rating . | . . . . Parts Repaired . | . . . . Time . | . . . . Parts Recycled . | . . . . Recycled Matter . | . . . . Retrieved Matter . | . . . . Retrieved Components . | . . . . Parts Scanalyzed . | . . . . Part Schematics Acquired . | . . . . Parts Damaged . | . . . . Bothacking | -11 -10 -10 -9 ------------ Run | Scr Mat Min Mat Used RIF Installer . | . . . . Robots Hacked . | . . . . Non-combat . | . . . . Combat . | . . . . Robot Hacks Applied . | . . . . Relay Couplers Released . | . . . . Robots Rewired . | . . . . Allies Hacked . | . . . . Hacks Repelled . | . . . . Allies | -11 -10 -10 -9 -------- Run | Scr Mat Min Mat Total Allies 1 | . . 1 . Largest Group 1 | . . 1 . Highest-Rated Group 31 | . . 31 . Highest-Rated Ally 31 | . . 31 . Total Orders . | . . . . Ally Attacks 7 | . . 7 . Total Damage 105 | . . 105 . Kills 2 | . . 2 . Allies Corrupted . | . . . . Allies Melted . | . . . . Intel | -11 -10 -10 -9 ------- Run | Scr Mat Min Mat Robot Analysis Total . | . . . . Derelict Logs Recovered 1 | . . 1 . Drone Launches . | . . . . Drone Recoveries . | . . . . Exploration | -11 -10 -10 -9 ------------- Run | Scr Mat Min Mat Turns Passed 3078 | 7 1095 799 1177 Spaces Moved 1491 | 3 615 390 483 Core . | . . . . Treads 1163 | . 305 390 468 Legs 15 | . . . 15 Wheels 313 | 3 310 . . Hover . | . . . . Flight . | . . . . Fastest Speed 90 | 90 90 180 180 Average Speed 172 | 90 143 180 204 Slowest Speed 360 | 90 180 180 360 Overloaded Moves . | . . . . Propulsion Burnouts . | . . . . Robots Hopped . | . . . . Cave-ins Triggered . | . . . . Exploration Rate (%) 45 | 2 73 67 38 Regions Visited 3 Branch Regions 1 Pre-discovered Areas 2 | . . 2 . Known Exits Taken . | . . . . Unknown Exits Taken 3 | 1 1 1 . Scrap Searched 3 | . . 3 . Spaces Dug 12 | . . 8 4 Terrain Destroyed 172 | . 78 90 4 Melee 4 | . . . 4 Projectile . | . . . . AOE 168 | . 78 90 . Terrain Rammed . | . . . . Walls Destroyed . | . . . . Machines Disabled . | . . . . Actions | -11 -10 -10 -9 --------- Run | Scr Mat Min Mat Total 1825 | 5 763 464 593 Wait 117 | . 69 25 23 Move 1488 | 2 614 389 483 Hop . | . . . . Pick Up 43 | . 21 9 13 Fast Attach 8 | . 2 3 3 Attach 22 | . 5 1 16 Detach 3 | . 1 . 2 Swap 16 | 3 3 5 5 Drop 17 | . 3 12 2 Fire 92 | . 45 20 27 Melee 14 | . . . 14 Ram . | . . . . Kick . | . . . . Crush 5 | . . . 5 Escape Stasis . | . . . . Rewire . | . . . . Trap . | . . . . Miscellaneous . | . . . . Route ------- -11/Scrapyard -10/Materials (discovered 2 exits: *Mat / [*Min]) -10/Mines -9/Materials (discovered 1 exit: [*Min]) History --------- Turn | Location | Event 6 | -11/Scrapyard | Discovered new exit (range 3) 8 | -11/Scrapyard | Entered Materials 271 | -10/Materials | Discovered new exit (range 15) 312 | -10/Materials | Build established: Hauler-Mutant 350 | -10/Materials | Discovered new exit (range 7) 1103 | -10/Materials | Entered Mines 1114 | -10/Mines | Learned location of Mines (-9) 1125 | -10/Mines | Found a hidden stash of uninstalled traps 1742 | -10/Mines | Core integrity fell below 50% 1748 | -10/Mines | Received a Rocket Launcher from a helpful Derelict 1772 | -10/Mines | Escorted by a lone wolf Derelict 1792 | -10/Mines | Learned location of Storage (-7) 1893 | -10/Mines | Discovered new exit (range 7) 1902 | -10/Mines | Entered Materials 1902 | -9/Materials | Evolved 2 slots: Utility x2 2607 | -9/Materials | Discovered new exit (range 14) 2787 | -9/Materials | Lost 4 parts (1p2n1u) 2799 | -9/Materials | Core integrity fell below 50% 2856 | -9/Materials | Lost 3 parts (1p2n) 2870 | -9/Materials | Core integrity fell below 20% 3079 | -9/Materials | Destroyed by G-34 Mercenary with Small Laser Last Messages --------------- 02894_ Acquired Imp. Ion Engine. 02898_ Acquired Lgt. Treads. 02902_ G-34 Mercenary suffers critical hit. 02902_ G-34 Mercenary destroyed. 02965_ W-16 Scout destroyed. 02971_ K-01 Serf collects debris. 02976_ Acquired Sensor Array. 02977_ Acquired 20 matter. 02979_ K-01 Serf collects debris. 03029_ Connecting with Terminal... >>Traps(Locate) Found 6 traps in 1 array: 6x Blade Trap Map updated. 03059_ C-30 ARC bursts open, deploying its payload. 03059_ G-47 Trooper unfolds itself. 03059_ G-34 Mercenary unfolds itself. 03061_ K-01 Serf collects debris. 03076_ G-47 Trooper suffers critical hit. 03076_ Destroyed Lgt. Nuclear Core. Map ----- +----------------------------------------------------+ | ????# ## ##?# ##????????????#????#"T """" | | ?#??# ## #??# #????????? ????????#"" """" | | ?#??# ## #### ##?#?????? ??????#?#"" """ | | ??#?# ## #?## #????????? ??????#?# | | ???## ##!! ! #??# #??? ?? ?? ????????######## | | #??# ###+####### #??????? ? ???????????????? | | ???# % ###???????????????????????? | | ???# #?????????????????????????? | | ???# #?##?? ? ?????????????????? | | ???# ## ############??????#/##???????????????? | | ???######?# #????????#???????? ???????????????? | | ??????????# #?##???########### #???????????????? | | ??????#???# #??#??## + #???????????????? | | ?????????# #????#?# !! # #????????????###+ | | ??????????# #?#????# !! # #????????????# | | ???????#?## #??????# # #???????????## | | ??????????# #?? ???# # #???????????? | | ?????#????# #???"??# + +????????????# | | ?????????# #???"??# # #????????????? | | ??????????# #??????# # #?????????????# | | ??????????# #??????#+###/##+## #?????????????# | | ??????????# #???? ?# #?# #?????????????# | | ??????????# #??????# #?# #?????????????# | | ??????????? ??????? ?# ##########???## | | ??????????? ??????? ?#g##/## ## ##### | | ??????????? ??????? ?# @gk # " | | ???????????#??????? ^^^# Tg # % < % | | ??????????????????##^^^# # = | | ???????????????????# # # ## ##### | | ???????????????????? + """ # ## "|"!" #???## | | ???????????????????? # """ # ##""|"!""#????# | | ???????????????????? # """ # ##########????# | | ???????????????????? # # #?????????????# | | ???????????????????? # """ # #?????????????# | | ???????????????????? # "?? # #????????????? | | ???????????????????? + "?? # #????????????# | | ???????????????????????# ??? # ????????????# T | | ???????????????????????##????# ????????????# | | ????????????????????????????? ????????????# | | ????????????????????????????? ????????????###+ | | ????????????????????????????? ????????????????? | | ?????????????????????????????????????????????????? | | ?????????????????????????????????????????????????? | | ?????????????????????????????????????????????????? | | ?????????????????????????????????????????????????? | | ?????????????????????????????????????????????????? | | ?????????????????????????????????????????????????? | | ?????????????????????????????????????????????????? | | ?????????????????????????????????????????????????? | | ?????????????????????????????????????????????????? | +----------------------------------------------------+ Best States ------------- Heat Dissipation 42 Energy Generation 14 Energy Capacity 265 Matter Stores 300 Matter Capacity 300 Sight Range 16 Terrain Scan Range 14 Terrain Scan Density 10 Armor Coverage 150 Evasion (%) 42 Recoil Reduction 2 Item Schematics ----------------- None Robot Schematics ------------------ None Fabricated ------------ Nothing Alien Tech Used ----------------- None Achievements -------------- None Challenges ------------ None Game ------ Seed BombardmentWeldingMace Manual? 0 Play Time 00:47:15 Cumulative 30.3 hours Start 2020.09.15 @ 18:25:21 End 2020.09.15 @ 19:14:50 Sessions 1 Manual Loads 0 Difficulty Rogue Special Mode None Game No. 7 Rogue 7 Adventurer 0 Explorer 0 Win Type - Total 0 Types 0/0/0/0/0/0/0/0/0 Lore% 16 Gallery% 31 Achievement% 25 Wizard Run 0 Options --------- ASCII 0 Keyboard 1 Movement Numpad Keybinds 0 Fullscreen 1 Font 18/SmallcapsGlow Map View 76x50 Tactical HUD 1 Map Filters NONE Filters NONE Steam 1 RUN: 331a28cd-d7b5-4f0f-92d9-e64b8e36ef76